[Event "Titled Tuesday Blitz January 31 Late 2023"]
[White "QuiesPrecatio"]
[Black "Onslow, Alfie"]
[BlackFideId "436976"]
[WhiteElo "2426"]
[BlackElo "2157"]
[Result "1-0"]
[Round "11"]
[TimeControl "180+2"]
[Date "2023.02.01"]
[WhiteClock "0:01:31"]
[BlackClock "0:00:53"]

1. e4 {[%clk 0:02:56]}  c5 {[%clk 0:02:55]} 2. Nf3 {[%clk 0:02:54]}  Nc6 {[%clk 0:02:54]} 3. d4 {[%clk 0:02:54]}  cxd4 {[%clk 0:02:54]} 4. Nxd4 {[%clk 0:02:55]}  e5 {[%clk 0:02:54]} 5. Nb5 {[%clk 0:02:52]}  d6 {[%clk 0:02:54]} 6. c4 {[%clk 0:02:49]}  Be7 {[%clk 0:02:53]} 7. Bd3 {[%clk 0:02:44]}  Nf6 {[%clk 0:02:51]} 8. N1c3 {[%clk 0:02:42]}  O-O {[%clk 0:02:50]} 9. Bg5 {[%clk 0:02:38]}  a6 {[%clk 0:02:49]} 10. Na3 {[%clk 0:02:38]}  Nd7 {[%clk 0:02:44]} 11. Bxe7 {[%clk 0:02:37]}  Qxe7 {[%clk 0:02:43]} 12. Nd5 {[%clk 0:02:38]}  Qg5 {[%clk 0:02:39]} 13. Qd2 {[%clk 0:02:29]}  Qxg2 {[%clk 0:02:21]} 14. O-O-O {[%clk 0:02:27]}  Nc5 {[%clk 0:02:12]} 15. Rhg1 {[%clk 0:02:07]}  Qxh2 {[%clk 0:01:39]} 16. Rh1 {[%clk 0:01:45]}  Nxd3+ {[%clk 0:01:35]} 17. Qxd3 {[%clk 0:01:46]}  Qxf2 {[%clk 0:01:32]} 18. Rdf1 {[%clk 0:01:32]}  Qd4 {[%clk 0:01:24]} 19. Nf6+ {[%clk 0:01:30]}  gxf6 {[%clk 0:01:18]} 20. Qg3+ {[%clk 0:01:30]}  Kh8 {[%clk 0:00:59]} 21. Rxh7+ {[%clk 0:01:30]}  Kxh7 {[%clk 0:01:00]} 22. Rh1+ {[%clk 0:01:31]}  Bh3 {[%clk 0:00:53]} 23. Rxh3# {[%clk 0:01:31]} 1-0


[Site "https://www.chess.com"]

[Event "Titled Tuesday Blitz January 31 Late 2023"]
[White "EdmundPlayer"]
[Black "Buchenau, Frank"]
[BlackFideId "4604350"]
[WhiteElo "2313"]
[BlackElo "2222"]
[Result "0-1"]
[Round "11"]
[TimeControl "180+2"]
[Date "2023.02.01"]
[WhiteClock "0:00:06"]
[BlackClock "0:00:20"]

1. e4 {[%clk 0:03:00]}  e6 {[%clk 0:02:59]} 2. d4 {[%clk 0:02:59]}  d5 {[%clk 0:02:59]} 3. Nc3 {[%clk 0:03:00]}  Nf6 {[%clk 0:02:58]} 4. e5 {[%clk 0:03:00]}  Nfd7 {[%clk 0:02:58]} 5. f4 {[%clk 0:02:59]}  c5 {[%clk 0:02:58]} 6. Nf3 {[%clk 0:02:59]}  Nc6 {[%clk 0:02:59]} 7. Be3 {[%clk 0:03:00]}  a6 {[%clk 0:02:58]} 8. Be2 {[%clk 0:02:59]}  b5 {[%clk 0:02:58]} 9. O-O {[%clk 0:02:57]}  Qb6 {[%clk 0:02:54]} 10. Qd2 {[%clk 0:02:51]}  cxd4 {[%clk 0:02:52]} 11. Nxd4 {[%clk 0:02:51]}  Nxd4 {[%clk 0:02:52]} 12. Bxd4 {[%clk 0:02:50]}  Qxd4+ {[%clk 0:02:51]} 13. Qxd4 {[%clk 0:02:49]}  Bc5 {[%clk 0:02:51]} 14. Rad1 {[%clk 0:02:34]}  Bb7 {[%clk 0:02:50]} 15. Qxc5 {[%clk 0:02:06]}  Nxc5 {[%clk 0:02:49]} 16. Bd3 {[%clk 0:02:06]}  Rc8 {[%clk 0:02:39]} 17. Ne2 {[%clk 0:02:05]}  Nxd3 {[%clk 0:02:34]} 18. cxd3 {[%clk 0:02:03]}  Rc2 {[%clk 0:02:33]} 19. Nd4 {[%clk 0:01:49]}  Rxb2 {[%clk 0:02:33]} 20. Rc1 {[%clk 0:01:49]}  O-O {[%clk 0:01:55]} 21. Rc7 {[%clk 0:01:41]}  Ba8 {[%clk 0:01:53]} 22. f5 {[%clk 0:01:35]}  exf5 {[%clk 0:01:36]} 23. Nxf5 {[%clk 0:00:54]}  d4 {[%clk 0:01:31]} 24. Rf2 {[%clk 0:00:44]}  Rb1+ {[%clk 0:01:17]} 25. Rf1 {[%clk 0:00:44]}  Rb2 {[%clk 0:01:06]} 26. Rf2 {[%clk 0:00:42]}  Rb1+ {[%clk 0:01:04]} 27. Rf1 {[%clk 0:00:42]}  Rxf1+ {[%clk 0:00:45]} 28. Kxf1 {[%clk 0:00:41]}  Rd8 {[%clk 0:00:33]} 29. Nd6 {[%clk 0:00:21]}  Bd5 {[%clk 0:00:30]} 30. Ra7 {[%clk 0:00:14]}  f6 {[%clk 0:00:28]} 31. Rxa6 {[%clk 0:00:11]}  fxe5 {[%clk 0:00:27]} 32. Nxb5 {[%clk 0:00:12]}  e4 {[%clk 0:00:22]} 33. dxe4 {[%clk 0:00:09]}  Bc4+ {[%clk 0:00:22]} 34. Kf2 {[%clk 0:00:07]}  Bxb5 {[%clk 0:00:22]} 35. Ra5 {[%clk 0:00:07]}  Bc4 {[%clk 0:00:20]} 36. a4 {[%clk 0:00:06]}  d3 {[%clk 0:00:20]} 0-1


[Site "https://www.chess.com"]

[Event "Titled Tuesday Blitz January 31 Late 2023"]
[White "Chabris, Christopher"]
[Black "Bon, Michael"]
[WhiteFideId "2005263"]
[BlackFideId "620696"]
[WhiteElo "2053"]
[BlackElo "2394"]
[Result "0-1"]
[Round "11"]
[TimeControl "180+2"]
[Date "2023.02.01"]
[WhiteClock "0:00:07"]
[BlackClock "0:01:48"]

1. e4 {[%clk 0:02:59]}  c5 {[%clk 0:03:00]} 2. Nf3 {[%clk 0:02:59]}  d6 {[%clk 0:03:00]} 3. Bb5+ {[%clk 0:02:58]}  Nd7 {[%clk 0:03:00]} 4. d4 {[%clk 0:02:58]}  cxd4 {[%clk 0:03:01]} 5. Qxd4 {[%clk 0:02:58]}  a6 {[%clk 0:03:00]} 6. Bxd7+ {[%clk 0:02:58]}  Bxd7 {[%clk 0:03:01]} 7. c4 {[%clk 0:02:59]}  Rc8 {[%clk 0:02:59]} 8. O-O {[%clk 0:02:57]}  Qc7 {[%clk 0:02:59]} 9. b3 {[%clk 0:02:49]}  b5 {[%clk 0:02:59]} 10. Na3 {[%clk 0:02:38]}  e5 {[%clk 0:02:53]} 11. Qd3 {[%clk 0:02:28]}  h6 {[%clk 0:02:49]} 12. Be3 {[%clk 0:02:22]}  d5 {[%clk 0:02:39]} 13. cxb5 {[%clk 0:01:18]}  Bxa3 {[%clk 0:02:38]} 14. b6 {[%clk 0:01:18]}  Qb7 {[%clk 0:02:33]} 15. Nxe5 {[%clk 0:01:13]}  Bb5 {[%clk 0:02:32]} 16. Qd4 {[%clk 0:01:08]}  Bc5 {[%clk 0:02:18]} 17. Qc3 {[%clk 0:00:41]}  Bxe3 {[%clk 0:02:13]} 18. Qxe3 {[%clk 0:00:41]}  Bxf1 {[%clk 0:02:13]} 19. exd5 {[%clk 0:00:37]}  Ne7 {[%clk 0:02:10]} 20. Nc6 {[%clk 0:00:29]}  Bb5 {[%clk 0:01:59]} 21. Re1 {[%clk 0:00:13]}  Bxc6 {[%clk 0:01:55]} 22. dxc6 {[%clk 0:00:11]}  Rxc6 {[%clk 0:01:56]} 23. Qf3 {[%clk 0:00:07]}  Re6 {[%clk 0:01:48]} 0-1


[Site "https://www.chess.com"]

[Event "Titled Tuesday Blitz January 31 Late 2023"]
[White "Osmonbekov, Talaibek"]
[Black "Melikhov, Evgeny V."]
[WhiteFideId "2017253"]
[BlackFideId "4122046"]
[WhiteElo "2137"]
[BlackElo "2269"]
[Result "1-0"]
[Round "11"]
[TimeControl "180+2"]
[Date "2023.02.01"]
[WhiteClock "0:00:37"]
[BlackClock "0:00:55"]

1. d4 {[%clk 0:03:00]}  Nf6 {[%clk 0:02:57]} 2. Bf4 {[%clk 0:03:01]}  d5 {[%clk 0:02:57]} 3. Nc3 {[%clk 0:03:01]}  c5 {[%clk 0:02:56]} 4. e3 {[%clk 0:03:01]}  cxd4 {[%clk 0:02:56]} 5. exd4 {[%clk 0:03:02]}  a6 {[%clk 0:02:57]} 6. Nf3 {[%clk 0:03:01]}  Nc6 {[%clk 0:02:55]} 7. Ne5 {[%clk 0:03:01]}  Bf5 {[%clk 0:02:50]} 8. Nxc6 {[%clk 0:02:55]}  bxc6 {[%clk 0:02:50]} 9. Bd3 {[%clk 0:02:56]}  Bxd3 {[%clk 0:02:48]} 10. Qxd3 {[%clk 0:02:57]}  e6 {[%clk 0:02:48]} 11. O-O {[%clk 0:02:57]}  c5 {[%clk 0:02:45]} 12. dxc5 {[%clk 0:02:51]}  Bxc5 {[%clk 0:02:44]} 13. Be5 {[%clk 0:02:41]}  Be7 {[%clk 0:02:42]} 14. Ne2 {[%clk 0:02:36]}  O-O {[%clk 0:02:40]} 15. Nd4 {[%clk 0:02:35]}  Qb6 {[%clk 0:02:31]} 16. Rab1 {[%clk 0:02:20]}  Rfc8 {[%clk 0:02:27]} 17. c3 {[%clk 0:02:17]}  a5 {[%clk 0:02:16]} 18. a4 {[%clk 0:02:06]}  Nd7 {[%clk 0:02:00]} 19. Bg3 {[%clk 0:01:47]}  Bf6 {[%clk 0:01:57]} 20. Nb5 {[%clk 0:01:40]}  Nc5 {[%clk 0:01:53]} 21. Qc2 {[%clk 0:01:37]}  Ne4 {[%clk 0:01:49]} 22. Bf4 {[%clk 0:01:20]}  Rc4 {[%clk 0:01:30]} 23. Kh1 {[%clk 0:01:08]}  Rac8 {[%clk 0:01:25]} 24. f3 {[%clk 0:01:05]}  Nf2+ {[%clk 0:01:08]} 25. Qxf2 {[%clk 0:00:54]}  Qxf2 {[%clk 0:01:08]} 26. Rxf2 {[%clk 0:00:55]}  Rxf4 {[%clk 0:01:08]} 27. g3 {[%clk 0:00:54]}  Rxa4 {[%clk 0:01:07]} 28. b3 {[%clk 0:00:43]}  Bd4 {[%clk 0:01:00]} 29. Nxd4 {[%clk 0:00:40]}  Ra3 {[%clk 0:00:55]} 30. Nb5 {[%clk 0:00:37]} 1-0


[Site "https://www.chess.com"]

[Event "Titled Tuesday Blitz January 31 Late 2023"]
[White "OKEKE, Isaac Chukwudalu"]
[Black "Ortez, Andrea"]
[WhiteFideId "8508526"]
[BlackFideId "6702392"]
[WhiteElo "2155"]
[BlackElo "1961"]
[Result "1-0"]
[Round "11"]
[TimeControl "180+2"]
[Date "2023.02.01"]
[WhiteClock "0:00:10"]
[BlackClock "0:00:02"]

1. e4 {[%clk 0:02:59]}  c5 {[%clk 0:02:56]} 2. Nf3 {[%clk 0:02:59]}  Nc6 {[%clk 0:02:55]} 3. d4 {[%clk 0:02:58]}  cxd4 {[%clk 0:02:54]} 4. Nxd4 {[%clk 0:02:59]}  g6 {[%clk 0:02:54]} 5. Nc3 {[%clk 0:02:57]}  Bg7 {[%clk 0:02:48]} 6. Be3 {[%clk 0:02:57]}  Nf6 {[%clk 0:02:48]} 7. Nxc6 {[%clk 0:02:26]}  bxc6 {[%clk 0:02:46]} 8. Bc4 {[%clk 0:02:21]}  O-O {[%clk 0:02:30]} 9. O-O {[%clk 0:02:19]}  d6 {[%clk 0:02:30]} 10. h3 {[%clk 0:02:15]}  Qc7 {[%clk 0:02:08]} 11. Qe2 {[%clk 0:02:09]}  Rb8 {[%clk 0:02:06]} 12. Rab1 {[%clk 0:02:07]}  Nd7 {[%clk 0:01:52]} 13. f4 {[%clk 0:02:02]}  Nb6 {[%clk 0:01:47]} 14. Bd3 {[%clk 0:01:58]}  c5 {[%clk 0:01:40]} 15. Nb5 {[%clk 0:01:45]}  Qd7 {[%clk 0:01:30]} 16. b3 {[%clk 0:01:44]}  a6 {[%clk 0:01:00]} 17. Na3 {[%clk 0:01:43]}  a5 {[%clk 0:00:40]} 18. Rbd1 {[%clk 0:01:27]}  Qc7 {[%clk 0:00:34]} 19. Nb5 {[%clk 0:01:15]}  Qb7 {[%clk 0:00:26]} 20. c4 {[%clk 0:01:13]}  Bd7 {[%clk 0:00:26]} 21. a4 {[%clk 0:01:12]}  Bxb5 {[%clk 0:00:26]} 22. cxb5 {[%clk 0:01:06]}  Rbc8 {[%clk 0:00:22]} 23. Qc2 {[%clk 0:00:55]}  Rfd8 {[%clk 0:00:21]} 24. Bc4 {[%clk 0:00:53]}  e6 {[%clk 0:00:14]} 25. f5 {[%clk 0:00:53]}  d5 {[%clk 0:00:14]} 26. fxe6 {[%clk 0:00:52]}  fxe6 {[%clk 0:00:14]} 27. exd5 {[%clk 0:00:51]}  exd5 {[%clk 0:00:15]} 28. Be2 {[%clk 0:00:50]}  d4 {[%clk 0:00:15]} 29. Bc4+ {[%clk 0:00:47]}  Kh8 {[%clk 0:00:14]} 30. Rf7 {[%clk 0:00:47]}  Rc7 {[%clk 0:00:14]} 31. Rxc7 {[%clk 0:00:27]}  Qxc7 {[%clk 0:00:15]} 32. Bg5 {[%clk 0:00:27]}  Rf8 {[%clk 0:00:14]} 33. Re1 {[%clk 0:00:26]}  Bf6 {[%clk 0:00:08]} 34. Bh6 {[%clk 0:00:23]}  Bg7 {[%clk 0:00:08]} 35. Qd2 {[%clk 0:00:20]}  Nxc4 {[%clk 0:00:06]} 36. bxc4 {[%clk 0:00:20]}  Qf7 {[%clk 0:00:06]} 37. Bxg7+ {[%clk 0:00:17]}  Kxg7 {[%clk 0:00:07]} 38. Kh1 {[%clk 0:00:15]}  Re8 {[%clk 0:00:07]} 39. Rxe8 {[%clk 0:00:13]}  Qxe8 {[%clk 0:00:08]} 40. Qxa5 {[%clk 0:00:13]}  d3 {[%clk 0:00:08]} 41. Qc3+ {[%clk 0:00:13]}  Kh6 {[%clk 0:00:06]} 42. Qd2+ {[%clk 0:00:12]}  Kg7 {[%clk 0:00:06]} 43. Qxd3 {[%clk 0:00:12]}  Qe1+ {[%clk 0:00:06]} 44. Kh2 {[%clk 0:00:12]}  Qe5+ {[%clk 0:00:06]} 45. Qg3 {[%clk 0:00:12]}  Qd4 {[%clk 0:00:05]} 46. b6 {[%clk 0:00:11]}  Qxc4 {[%clk 0:00:02]} 47. b7 {[%clk 0:00:11]}  Qxa4 {[%clk 0:00:02]} 48. b8=Q {[%clk 0:00:11]}  Kh6 {[%clk 0:00:02]} 49. Qf8+ {[%clk 0:00:10]}  Kh5 {[%clk 0:00:02]} 50. Qgf3+ {[%clk 0:00:10]} 1-0


[Site "https://www.chess.com"]

[Event "Titled Tuesday Blitz January 31 Late 2023"]
[White "Todev, Simeon"]
[Black "Kaufman, Lawrence"]
[WhiteFideId "2925133"]
[BlackFideId "2000555"]
[WhiteElo "2033"]
[BlackElo "2188"]
[Result "1/2-1/2"]
[Round "11"]
[TimeControl "180+2"]
[Date "2023.02.01"]
[WhiteClock "0:00:08"]
[BlackClock "0:00:05"]

1. e4 {[%clk 0:02:59]}  e5 {[%clk 0:02:58]} 2. Nf3 {[%clk 0:02:59]}  Nf6 {[%clk 0:02:58]} 3. d4 {[%clk 0:03:00]}  Nxe4 {[%clk 0:02:56]} 4. Nxe5 {[%clk 0:02:59]}  d5 {[%clk 0:02:51]} 5. Bd3 {[%clk 0:02:58]}  Bd6 {[%clk 0:02:50]} 6. Bxe4 {[%clk 0:02:57]}  dxe4 {[%clk 0:02:49]} 7. O-O {[%clk 0:02:57]}  O-O {[%clk 0:02:49]} 8. Nc3 {[%clk 0:02:56]}  Bf5 {[%clk 0:02:45]} 9. f3 {[%clk 0:02:42]}  exf3 {[%clk 0:02:41]} 10. Qxf3 {[%clk 0:02:40]}  Be6 {[%clk 0:02:16]} 11. Qxb7 {[%clk 0:02:24]}  Nd7 {[%clk 0:02:15]} 12. Nxd7 {[%clk 0:02:24]}  Qxd7 {[%clk 0:02:10]} 13. Qf3 {[%clk 0:02:19]}  Rae8 {[%clk 0:01:56]} 14. Bf4 {[%clk 0:02:17]}  Bg4 {[%clk 0:01:50]} 15. Qg3 {[%clk 0:02:15]}  Bh5 {[%clk 0:01:43]} 16. Bxd6 {[%clk 0:02:12]}  cxd6 {[%clk 0:01:34]} 17. Rae1 {[%clk 0:02:12]}  Bg6 {[%clk 0:01:31]} 18. Nd5 {[%clk 0:02:07]}  Qb7 {[%clk 0:01:10]} 19. Qxd6 {[%clk 0:01:58]}  Qxb2 {[%clk 0:00:56]} 20. Ne7+ {[%clk 0:01:32]}  Kh8 {[%clk 0:00:56]} 21. Nxg6+ {[%clk 0:01:29]}  hxg6 {[%clk 0:00:54]} 22. Rxe8 {[%clk 0:01:29]}  Rxe8 {[%clk 0:00:50]} 23. Rxf7 {[%clk 0:01:17]}  Qxc2 {[%clk 0:00:42]} 24. Rf8+ {[%clk 0:01:16]}  Rxf8 {[%clk 0:00:41]} 25. Qxf8+ {[%clk 0:01:17]}  Kh7 {[%clk 0:00:41]} 26. Qf4 {[%clk 0:00:51]}  Qxa2 {[%clk 0:00:36]} 27. h4 {[%clk 0:00:47]}  a5 {[%clk 0:00:31]} 28. h5 {[%clk 0:00:37]}  Qb1+ {[%clk 0:00:29]} 29. Kh2 {[%clk 0:00:36]}  gxh5 {[%clk 0:00:28]} 30. d5 {[%clk 0:00:36]}  Qd3 {[%clk 0:00:20]} 31. d6 {[%clk 0:00:32]}  a4 {[%clk 0:00:19]} 32. Qg3 {[%clk 0:00:24]}  Qxg3+ {[%clk 0:00:13]} 33. Kxg3 {[%clk 0:00:24]}  a3 {[%clk 0:00:13]} 34. d7 {[%clk 0:00:24]}  a2 {[%clk 0:00:13]} 35. d8=Q {[%clk 0:00:25]}  a1=Q {[%clk 0:00:12]} 36. Qd3+ {[%clk 0:00:25]}  g6 {[%clk 0:00:09]} 37. Qd7+ {[%clk 0:00:25]}  Qg7 {[%clk 0:00:09]} 38. Qd6 {[%clk 0:00:24]}  Qf7 {[%clk 0:00:08]} 39. Qe5 {[%clk 0:00:19]}  Qg7 {[%clk 0:00:07]} 40. Qd6 {[%clk 0:00:18]}  Qf7 {[%clk 0:00:07]} 41. Qe5 {[%clk 0:00:17]}  Qg7 {[%clk 0:00:07]} 42. Qe3 {[%clk 0:00:16]}  Qf7 {[%clk 0:00:07]} 43. Qd3 {[%clk 0:00:14]}  Qc7+ {[%clk 0:00:07]} 44. Kh3 {[%clk 0:00:13]}  Qc8+ {[%clk 0:00:07]} 45. Kh2 {[%clk 0:00:12]}  Qc7+ {[%clk 0:00:07]} 46. g3 {[%clk 0:00:11]}  Qf7 {[%clk 0:00:06]} 47. Qe3 {[%clk 0:00:11]}  Qg7 {[%clk 0:00:06]} 48. Kh3 {[%clk 0:00:11]}  Qd7+ {[%clk 0:00:05]} 49. Kh2 {[%clk 0:00:11]}  Qf7 {[%clk 0:00:05]} 50. Qd4 {[%clk 0:00:10]}  Qg7 {[%clk 0:00:05]} 51. Qd5 {[%clk 0:00:10]}  g5 {[%clk 0:00:05]} 52. Qf5+ {[%clk 0:00:09]}  Qg6 {[%clk 0:00:05]} 53. Qd7+ {[%clk 0:00:10]}  Qg7 {[%clk 0:00:05]} 54. Qd5 {[%clk 0:00:09]}  h4 {[%clk 0:00:04]} 55. Qe4+ {[%clk 0:00:06]}  Qg6 {[%clk 0:00:04]} 56. Qe7+ {[%clk 0:00:06]}  Qg7 {[%clk 0:00:04]} 57. Qe4+ {[%clk 0:00:06]}  Qg6 {[%clk 0:00:04]} 58. Qb7+ {[%clk 0:00:07]}  Qg7 {[%clk 0:00:04]} 59. Qb1+ {[%clk 0:00:07]}  Qg6 {[%clk 0:00:04]} 60. Qb7+ {[%clk 0:00:07]}  Qg7 {[%clk 0:00:05]} 61. Qe4+ {[%clk 0:00:08]} 1/2-1/2


[Site "https://www.chess.com"]

[Event "Titled Tuesday Blitz January 31 Late 2023"]
[White "kiwibobo"]
[Black "Zhou, Qiyu"]
[BlackFideId "505161"]
[WhiteElo "2087"]
[BlackElo "2201"]
[Result "1-0"]
[Round "11"]
[TimeControl "180+2"]
[Date "2023.02.01"]
[WhiteClock "0:01:24"]
[BlackClock "0:01:38"]

1. e4 {[%clk 0:03:00]}  e5 {[%clk 0:02:59]} 2. Nf3 {[%clk 0:03:01]}  Nc6 {[%clk 0:03:00]} 3. Bb5 {[%clk 0:03:01]}  a6 {[%clk 0:02:59]} 4. Ba4 {[%clk 0:03:01]}  Nf6 {[%clk 0:02:59]} 5. O-O {[%clk 0:03:01]}  b5 {[%clk 0:02:59]} 6. Bb3 {[%clk 0:03:01]}  Be7 {[%clk 0:02:59]} 7. d3 {[%clk 0:03:01]}  O-O {[%clk 0:02:59]} 8. a4 {[%clk 0:03:01]}  Rb8 {[%clk 0:02:59]} 9. Nc3 {[%clk 0:03:00]}  b4 {[%clk 0:02:58]} 10. Nd5 {[%clk 0:03:00]}  d6 {[%clk 0:02:58]} 11. a5 {[%clk 0:02:55]}  Bg4 {[%clk 0:02:55]} 12. h3 {[%clk 0:02:55]}  Bh5 {[%clk 0:02:55]} 13. g4 {[%clk 0:02:43]}  Bg6 {[%clk 0:02:51]} 14. Ne3 {[%clk 0:02:38]}  Nd7 {[%clk 0:02:37]} 15. Bd5 {[%clk 0:02:34]}  Na7 {[%clk 0:02:36]} 16. Nf5 {[%clk 0:02:33]}  c6 {[%clk 0:02:35]} 17. Bb3 {[%clk 0:02:31]}  Nc5 {[%clk 0:02:33]} 18. Ba2 {[%clk 0:02:26]}  Re8 {[%clk 0:02:21]} 19. Be3 {[%clk 0:02:26]}  Rb5 {[%clk 0:02:18]} 20. Bc4 {[%clk 0:02:25]}  Rxa5 {[%clk 0:02:19]} 21. Rxa5 {[%clk 0:02:16]}  Qxa5 {[%clk 0:02:20]} 22. Qa1 {[%clk 0:02:14]}  Qb6 {[%clk 0:01:56]} 23. Qa2 {[%clk 0:01:44]}  Nb5 {[%clk 0:01:53]} 24. Ra1 {[%clk 0:01:40]}  Bxf5 {[%clk 0:01:51]} 25. Bxf7+ {[%clk 0:01:39]}  Kf8 {[%clk 0:01:48]} 26. Bxe8 {[%clk 0:01:39]}  Kxe8 {[%clk 0:01:48]} 27. exf5 {[%clk 0:01:34]}  Nc7 {[%clk 0:01:39]} 28. Qg8+ {[%clk 0:01:31]}  Bf8 {[%clk 0:01:38]} 29. Ng5 {[%clk 0:01:24]} 1-0


[Site "https://www.chess.com"]

[Event "Titled Tuesday Blitz January 31 Late 2023"]
[White "Harish, Neeraj"]
[Black "Figorito, Nick"]
[WhiteFideId "30958130"]
[BlackFideId "30923689"]
[WhiteElo "2232"]
[BlackElo "2036"]
[Result "0-1"]
[Round "11"]
[TimeControl "180+2"]
[Date "2023.02.01"]
[WhiteClock "0:00:05"]
[BlackClock "0:00:11"]

1. e4 {[%clk 0:03:00]}  e6 {[%clk 0:02:59]} 2. d4 {[%clk 0:03:00]}  d5 {[%clk 0:03:00]} 3. Nc3 {[%clk 0:02:59]}  Bb4 {[%clk 0:03:00]} 4. e5 {[%clk 0:03:00]}  c5 {[%clk 0:03:00]} 5. a3 {[%clk 0:03:00]}  Bxc3+ {[%clk 0:03:00]} 6. bxc3 {[%clk 0:03:01]}  Ne7 {[%clk 0:03:01]} 7. Qg4 {[%clk 0:02:59]}  Kf8 {[%clk 0:03:01]} 8. h4 {[%clk 0:02:53]}  Qa5 {[%clk 0:03:01]} 9. Bd2 {[%clk 0:02:48]}  Qa4 {[%clk 0:03:00]} 10. Qd1 {[%clk 0:02:38]}  Nbc6 {[%clk 0:02:56]} 11. Nf3 {[%clk 0:02:34]}  b6 {[%clk 0:02:55]} 12. h5 {[%clk 0:02:19]}  h6 {[%clk 0:02:55]} 13. Rb1 {[%clk 0:02:13]}  Ba6 {[%clk 0:02:55]} 14. Bxa6 {[%clk 0:02:09]}  Qxa6 {[%clk 0:02:55]} 15. Rh3 {[%clk 0:01:51]}  Qxa3 {[%clk 0:02:43]} 16. g4 {[%clk 0:01:20]}  Ke8 {[%clk 0:02:38]} 17. g5 {[%clk 0:01:19]}  Nf5 {[%clk 0:02:28]} 18. gxh6 {[%clk 0:01:09]}  gxh6 {[%clk 0:02:29]} 19. Nh4 {[%clk 0:01:08]}  Ncxd4 {[%clk 0:02:19]} 20. Ra1 {[%clk 0:00:53]}  Qb2 {[%clk 0:02:19]} 21. cxd4 {[%clk 0:00:49]}  Nxd4 {[%clk 0:02:17]} 22. Bc3 {[%clk 0:00:45]}  Nxc2+ {[%clk 0:02:03]} 23. Kf1 {[%clk 0:00:45]}  Qb5+ {[%clk 0:02:03]} 24. Kg1 {[%clk 0:00:43]}  Nxa1 {[%clk 0:01:56]} 25. Bxa1 {[%clk 0:00:44]}  Kd7 {[%clk 0:01:37]} 26. Kh2 {[%clk 0:00:36]}  Rag8 {[%clk 0:01:33]} 27. Qf3 {[%clk 0:00:33]}  Ke8 {[%clk 0:01:22]} 28. Rg3 {[%clk 0:00:19]}  Qa4 {[%clk 0:01:21]} 29. Ng6 {[%clk 0:00:14]}  Qxa1 {[%clk 0:00:57]} 30. Qf6 {[%clk 0:00:08]}  fxg6 {[%clk 0:00:26]} 31. Qxe6+ {[%clk 0:00:08]}  Kd8 {[%clk 0:00:27]} 32. Qd6+ {[%clk 0:00:08]}  Kc8 {[%clk 0:00:26]} 33. hxg6 {[%clk 0:00:08]}  Qa4 {[%clk 0:00:19]} 34. g7 {[%clk 0:00:08]}  Qh4+ {[%clk 0:00:16]} 35. Kg1 {[%clk 0:00:07]}  Qd8 {[%clk 0:00:11]} 36. Qe6+ {[%clk 0:00:05]}  Kb7 {[%clk 0:00:09]} 37. gxh8=Q {[%clk 0:00:04]}  Rxh8 {[%clk 0:00:09]} 38. Rg7+ {[%clk 0:00:05]}  Ka6 {[%clk 0:00:09]} 39. Qf7 {[%clk 0:00:04]}  Qb8 {[%clk 0:00:05]} 40. e6 {[%clk 0:00:03]}  Re8 {[%clk 0:00:05]} 41. e7 {[%clk 0:00:03]}  d4 {[%clk 0:00:05]} 42. Qe6 {[%clk 0:00:03]}  Rxe7 {[%clk 0:00:02]} 43. Qxe7 {[%clk 0:00:03]}  Qf4 {[%clk 0:00:03]} 44. Qxa7+ {[%clk 0:00:02]}  Kb5 {[%clk 0:00:03]} 45. Qd7+ {[%clk 0:00:03]}  Kc4 {[%clk 0:00:04]} 46. Qe7 {[%clk 0:00:03]}  Kd3 {[%clk 0:00:05]} 47. Qf7 {[%clk 0:00:04]}  Qc1+ {[%clk 0:00:05]} 48. Kg2 {[%clk 0:00:03]}  Qd2 {[%clk 0:00:06]} 49. Qg6+ {[%clk 0:00:03]}  Kc3 {[%clk 0:00:07]} 50. Qxh6 {[%clk 0:00:04]}  d3 {[%clk 0:00:08]} 51. Qxd2+ {[%clk 0:00:03]}  Kxd2 {[%clk 0:00:08]} 52. Rg6 {[%clk 0:00:04]}  c4 {[%clk 0:00:08]} 53. Rxb6 {[%clk 0:00:04]}  c3 {[%clk 0:00:09]} 54. Rc6 {[%clk 0:00:05]}  c2 {[%clk 0:00:10]} 55. f4 {[%clk 0:00:04]}  c1=Q {[%clk 0:00:11]} 56. f5 {[%clk 0:00:05]}  Qxc6+ {[%clk 0:00:11]} 0-1


[Site "https://www.chess.com"]

[Event "Titled Tuesday Blitz January 31 Late 2023"]
[White "Tarnowska, Aleksandra"]
[Black "Howell, David W L"]
[WhiteFideId "1180967"]
[BlackFideId "410608"]
[WhiteElo "1835"]
[BlackElo "2677"]
[Result "0-1"]
[Round "11"]
[TimeControl "180+2"]
[Date "2023.02.01"]
[WhiteClock "0:00:01"]
[BlackClock "0:01:21"]

1. e4 {[%clk 0:03:00]}  c5 {[%clk 0:02:55]} 2. Nf3 {[%clk 0:02:58]}  a6 {[%clk 0:02:45]} 3. c4 {[%clk 0:02:54]}  Nc6 {[%clk 0:02:37]} 4. d4 {[%clk 0:02:52]}  cxd4 {[%clk 0:02:36]} 5. Nxd4 {[%clk 0:02:53]}  e6 {[%clk 0:02:34]} 6. Nc3 {[%clk 0:02:32]}  d6 {[%clk 0:02:31]} 7. Be2 {[%clk 0:02:24]}  Nf6 {[%clk 0:02:30]} 8. O-O {[%clk 0:02:24]}  Be7 {[%clk 0:02:31]} 9. Be3 {[%clk 0:02:17]}  O-O {[%clk 0:02:28]} 10. f4 {[%clk 0:01:56]}  Bd7 {[%clk 0:02:23]} 11. f5 {[%clk 0:01:51]}  Rc8 {[%clk 0:02:09]} 12. b3 {[%clk 0:01:21]}  Ne5 {[%clk 0:02:08]} 13. h3 {[%clk 0:01:11]}  b5 {[%clk 0:01:41]} 14. fxe6 {[%clk 0:00:47]}  fxe6 {[%clk 0:01:42]} 15. Bf4 {[%clk 0:00:37]}  b4 {[%clk 0:01:25]} 16. Nb1 {[%clk 0:00:26]}  Nxe4 {[%clk 0:01:21]} 17. Bxe5 {[%clk 0:00:19]}  dxe5 {[%clk 0:01:22]} 18. Rxf8+ {[%clk 0:00:15]}  Qxf8 {[%clk 0:01:22]} 19. Nf3 {[%clk 0:00:16]}  Bc5+ {[%clk 0:01:21]} 20. Kh2 {[%clk 0:00:11]}  Qf4+ {[%clk 0:01:22]} 21. Kh1 {[%clk 0:00:03]}  Ng3+ {[%clk 0:01:20]} 22. Kh2 {[%clk 0:00:03]}  Nf1+ {[%clk 0:01:20]} 23. Kh1 {[%clk 0:00:01]}  Qh2+ {[%clk 0:01:20]} 24. Nxh2 {[%clk 0:00:01]}  Ng3# {[%clk 0:01:21]} 0-1


[Site "https://www.chess.com"]